bitfinex/quotes_SOLUSD_20250616
["timestamp","ask_amount","ask_price","bid_price","bid_amount"]
[1750115252736,33.89462699,153.34,153.33,9.56]
[1750115253105,33.89462699,153.34,153.22,9.38]
[1750115253106,0.42648471,153.33,153.22,9.38]
[1750115253419,18.64964886,153.24,153.23,6.52613717]
[1750115253722,50.94964886,153.24,153.23,6.52613717]
[1750115253917,66.19462699,153.24,153.23,6.52613717]
[1750115254295,50.94964886,153.24,153.23,6.52613717]
[1750115254503,32.3,153.24,153.23,6.52613717]
[1750115255404,0.28432314,153.3,153.23,38.08645824]
[1750115255643,18.64964886,153.31,153.27,15.24497813]
[1750115255800,15.24497813,153.31,153.26,15.24497813]
[1750115256005,32.28,153.3,153.28,15.24497813]
[1750115256341,32.28,153.32,153.29,15.24497813]
[1750115256521,32.28,153.32,153.31,15.24497813]
[1750115256732,15.24497813,153.37,153.31,24.62497813]
[1750115256903,10.0787,153.38,153.32,15.24497813]
[1750115257104,18.64964886,153.36,153.32,15.24497813]
[1750115257417,18.64964886,153.36,153.33,6.52188091]
[1750115257604,33.89462699,153.36,153.33,6.52188091]
[1750115258026,15.24497813,153.35,153.33,6.52188091]
[1750115258209,50.90964886,153.34,153.33,6.52188091]
[1750115258906,18.64964886,153.33,153.31,9.38]
[1750115259122,18.64964886,153.33,153.31,15.90267198]
[1750115259123,15.24497813,153.33,153.31,15.90267198]
[1750115259312,33.89462699,153.32,153.31,9.38]
[1750115259820,18.64964886,153.3,153.24,9.38]
[1750115260000,33.89462699,153.25,153.24,9.38]
[1750115260200,50.88964886,153.25,153.24,9.38]
[1750115260405,66.13462699,153.25,153.24,9.38]
[1750115261015,32.24,153.25,153.24,15.9057113]
[1750115263746,47.48497813,153.25,153.24,15.9057113]
[1750115263913,66.13462699,153.25,153.24,15.9057113]
[1750115265434,47.46497813,153.25,153.24,15.9057113]
[1750115265742,47.44497813,153.25,153.24,15.9057113]
[1750115265911,32.2,153.25,153.24,15.9057113]
[1750115266221,50.84964886,153.25,153.24,15.9057113]
[1750115266421,66.09462699,153.25,153.24,15.9057113]
[1750115267030,33.89462699,153.25,153.24,15.9057113]
[1750115267246,32.2,153.25,153.24,15.9057113]
[1750115268406,47.44497813,153.25,153.24,15.9057113]
[1750115268820,66.09462699,153.25,153.24,15.9057113]
[1750115269641,50.84964886,153.25,153.24,15.9057113]
[1750115270009,32.2,153.25,153.24,15.9057113]
[1750115270515,32.18,153.26,153.24,15.9057113]
[1750115270733,50.80964886,153.27,153.24,32.21998955]
[1750115270940,15.24497813,153.29,153.24,73.46496768]
[1750115271123,15.24497813,153.32,153.27,15.24497813]
[1750115271316,32.16,153.31,153.27,15.24497813]
[1750115271538,47.40497813,153.31,153.26,15.24497813]
[1750115271749,33.89462699,153.27,153.24,16.31427825]
[1750115271956,15.24497813,153.26,153.25,9.38]
[1750115272247,18.64964886,153.27,153.25,9.38]
[1750115272421,33.89462699,153.27,153.25,9.38]
[1750115272618,15.24497813,153.26,153.25,9.38]
[1750115272832,18.64964886,153.27,153.25,9.38]
[1750115273031,32.14,153.26,153.25,9.38]
[1750115274133,32.14,153.26,153.25,15.90528548]
[1750115275452,60.62738959,153.26,153.25,9.38]
[1750115275619,50.78964886,153.26,153.25,15.90528548]
[1750115275815,32.14,153.26,153.25,15.90528548]
[1750115276039,41.97774073,153.26,153.25,15.90528548]
[1750115276922,32.14,153.26,153.25,15.90528548]
[1750115277642,28.48738959,153.28,153.25,15.90528548]
[1750115277851,32.1,153.27,153.25,15.90528548]
[1750115278224,9.83774073,153.26,153.25,15.90528548]
[1750115278752,32.1,153.28,153.25,32.21849918]
[1750115278923,60.58738959,153.29,153.25,32.21849918]
[1750115279250,28.48738959,153.27,153.25,15.90528548]
[1750115279465,18.64964886,153.27,153.25,15.90528548]
[1750115280060,50.72964886,153.27,153.25,15.90528548]
[1750115280360,50.72964886,153.29,153.25,42.05623991]
[1750115280849,13.4764,153.37,153.28,35.83774073]
[1750115281147,41.91774073,153.36,153.31,9.83774073]
[1750115281452,19.91414073,153.37,153.32,9.83774073]
[1750115281648,177.4476,153.4,153.31,9.83774073]
[1750115281649,60.56738959,153.36,153.31,9.83774073]
[1750115281873,26.29160115,153.46,153.28,26.0]
[1750115281874,149.1,153.48,153.35,19.67548146]
[1750115282151,39.17,153.53,153.46,26.0]
[1750115282351,4.48025469,153.54,153.47,9.2]
[1750115282524,4.48025469,153.54,153.49,16.35282314]
[1750115282718,4.48025469,153.54,153.53,9.83774073]
[1750115282926,0.18,153.61,153.56,26.0]
[1750115283135,15.15245182,153.57,153.56,9.2]
[1750115283325,0.18,153.61,153.56,9.2]
[1750115283542,0.18,153.61,153.56,24.35245182]
[1750115283738,3.39570282,153.6,153.59,26.0]
[1750115284234,0.18,153.61,153.56,35.2]
[1750115284436,0.18,153.61,153.6,26.0]
[1750115284662,0.18,153.61,153.6,47.66286848]
[1750115285054,0.18,153.61,153.6,9.18]
[1750115285250,0.18,153.61,153.6,24.33245182]
[1750115285833,0.18,153.61,153.6,9.18]
[1750115286033,0.18,153.61,153.6,24.47461339]
[1750115286257,0.18,153.61,153.6,9.32216157]
[1750115286458,0.18,153.61,153.6,24.47461339]
[1750115286666,0.18,153.61,153.6,15.69041666]
[1750115286960,15.33245182,153.61,153.6,9.18]
[1750115287188,0.18,153.61,153.6,9.18]
[1750115287342,33.98210068,153.61,153.6,9.18]
[1750115287537,18.64964886,153.6,153.59,9.18]
[1750115287783,50.64964886,153.6,153.59,9.18]
[1750115287944,66.22858539,153.6,153.59,9.18]
[1750115288657,57.58655023,153.6,153.59,9.18]
[1750115288865,66.22858539,153.6,153.59,9.18]
[1750115289543,19.07613357,153.59,153.49,6.51504358]
[1750115289741,18.64964886,153.53,153.5,9.18]
[1750115289939,18.64964886,153.53,153.51,15.15245182]
[1750115290140,18.64964886,153.53,153.5,9.18]
[1750115290336,18.64964886,153.53,153.5,24.33245182]
[1750115290568,0.18,153.61,153.52,15.15245182]
[1750115290783,18.64964886,153.6,153.56,15.15245182]
[1750115291442,32.16,153.61,153.57,15.15245182]
[1750115292275,0.18,153.61,153.58,15.15245182]
[1750115292481,0.18,153.61,153.57,15.15245182]
[1750115292680,0.18,153.61,153.58,6.51126448]
[1750115292981,15.33245182,153.61,153.56,15.15245182]
[1750115293156,0.18,153.61,153.57,15.15245182]
[1750115293343,15.33245182,153.61,153.57,15.15245182]
[1750115293544,15.33245182,153.61,153.54,26.0]
[1750115293545,0.18,153.61,153.6,15.15245182]
[1750115293774,15.33245182,153.61,153.6,9.18]
[1750115293950,0.18,153.61,153.6,9.18]
[1750115294340,0.18,153.61,153.6,24.33245182]
[1750115294744,0.18,153.61,153.6,30.84286848]
[1750115295345,0.18,153.61,153.6,31.26935319]
[1750115295546,1.386941,153.72,153.64,0.14216157]
[1750115295774,15.15245182,153.71,153.63,26.0]
[1750115295944,15.15245182,153.7,153.63,26.0]
[1750115296145,1.386941,153.72,153.6,103.0430768]
[1750115296146,15.15245182,153.65,153.6,103.0430768]
[1750115296374,15.15245182,153.64,153.61,9.18]
[1750115296575,18.64964886,153.62,153.61,9.18]
[1750115296896,40.29333333,153.68,153.62,48.78349172]
[1750115297196,8.33333333,153.68,153.67,15.15245182]
[1750115297487,8.33333333,153.68,153.65,26.0]
[1750115297684,8.33333333,153.68,153.67,15.15245182]
[1750115298694,8.33333333,153.68,153.67,41.15245182]
[1750115298889,8.33333333,153.68,153.67,47.65990285]
[1750115299047,8.33333333,153.68,153.67,32.50745103]
[1750115299257,8.33333333,153.68,153.67,47.65990285]
[1750115299472,8.33333333,153.68,153.67,21.65990285]
[1750115299663,8.33333333,153.68,153.67,37.23883938]
[1750115302680,8.33333333,153.68,153.67,56.83990285]
[1750115303471,8.33333333,153.68,153.67,30.83990285]
[1750115303773,8.33333333,153.68,153.67,56.83990285]
[1750115304276,8.33333333,153.68,153.67,31.26638756]
[1750115304574,8.33333333,153.68,153.67,46.41883938]
[1750115305353,8.33333333,153.68,153.67,31.26638756]
[1750115305665,8.33333333,153.68,153.67,46.41883938]
[1750115306557,8.33333333,153.68,153.67,31.26638756]
[1750115306965,8.33333333,153.68,153.67,15.68745103]
[1750115307367,8.33333333,153.68,153.67,30.83990285]
[1750115307567,8.33333333,153.68,153.67,41.68745103]
[1750115307767,8.33333333,153.68,153.67,56.83990285]
[1750115308280,8.33333333,153.68,153.67,41.68745103]
[1750115308453,8.33333333,153.68,153.67,56.83990285]
[1750115308655,8.33333333,153.68,153.67,41.68745103]
[1750115308870,8.33333333,153.68,153.67,56.83990285]
[1750115309276,8.33333333,153.68,153.65,6.50829808]
[1750115309479,8.33333333,153.68,153.65,21.6607499]
[1750115309682,8.33333333,153.68,153.67,15.15245182]
[1750115311006,8.33333333,153.68,153.67,21.65990285]
[1750115311193,8.33333333,153.68,153.67,22.08638756]
[1750115311359,8.33333333,153.68,153.67,37.23883938]
[1750115311669,8.33333333,153.68,153.67,21.65990285]
[1750115314270,8.33333333,153.68,153.67,37.23883938]
[1750115314665,8.33333333,153.68,153.67,6.50745103]
[1750115314992,8.33333333,153.68,153.67,21.65990285]
[1750115316792,1.386941,153.72,153.7,26.0]
[1750115316998,1.386941,153.72,153.71,15.29461339]
[1750115317389,1.386941,153.72,153.71,21.80037098]
[1750115319088,1.386941,153.72,153.71,22.08469412]
[1750115319412,1.386941,153.72,153.71,21.80037098]
[1750115319722,1.386941,153.72,153.71,22.08469412]
[1750115320089,1.386941,153.72,153.71,40.73434298]
[1750115320326,4.43309411,153.79,153.75,26.0]
[1750115320501,4.43309411,153.79,153.78,26.0]
[1750115320813,4.43309411,153.79,153.78,35.76349905]
[1750115321410,4.43309411,153.79,153.78,42.40845682]
[1750115321719,4.43309411,153.79,153.78,42.69277996]
[1750115321891,4.43309411,153.79,153.78,32.64495777]
[1750115322088,4.43309411,153.79,153.78,51.34629525]
[1750115322493,4.43309411,153.79,153.78,41.5827962]
[1750115322916,4.43309411,153.79,153.78,56.69571175]
[1750115323717,4.43309411,153.79,153.78,41.5827962]
[1750115323926,4.43309411,153.79,153.78,15.5827962]
[1750115325114,4.43309411,153.79,153.78,30.69571175]
[1750115325307,4.43309411,153.79,153.78,15.5827962]
[1750115325513,4.43309411,153.79,153.78,30.69571175]
[1750115326620,4.43309411,153.79,153.78,15.5827962]
[1750115327930,4.43309411,153.79,153.78,41.5827962]
[1750115330215,4.43309411,153.79,153.78,56.69571175]
[1750115332126,4.43309411,153.79,153.78,15.5827962]
[1750115332439,19.54600966,153.79,153.78,15.5827962]
[1750115332638,4.43309411,153.79,153.78,15.5827962]
[1750115333429,4.43309411,153.79,153.78,30.69571175]
[1750115334451,4.43309411,153.79,153.78,15.5827962]
[1750115336846,4.43309411,153.79,153.78,15.72495777]
[1750115337048,4.43309411,153.79,153.78,31.12219646]
[1750115337250,4.43309411,153.79,153.78,16.00928091]
[1750115337550,4.43309411,153.79,153.78,31.12219646]
[1750115338227,4.43309411,153.79,153.78,16.00928091]
[1750115338437,4.43309411,153.79,153.78,31.12219646]
[1750115338636,4.43309411,153.79,153.78,15.5827962]
[1750115339732,4.43309411,153.79,153.78,41.5827962]
[1750115340672,4.43309411,153.79,153.78,9.08]
[1750115340673,38.19565852,153.79,153.78,9.08]
[1750115341378,38.62214323,153.79,153.65,5.08306738]
[1750115341556,18.64964886,153.75,153.63,9.02]
[1750115341735,18.64964886,153.75,153.69,15.11291555]
[1750115341736,31.78,153.74,153.69,15.11291555]
[1750115341931,31.78,153.74,153.64,22.78000921]
[1750115341932,15.11291555,153.7,153.64,22.78000921]
[1750115342254,15.11291555,153.7,153.66,26.0]
[1750115342559,15.11291555,153.7,153.67,26.0]
[1750115342857,15.11291555,153.68,153.64,6.50872168]
[1750115343234,15.11291555,153.72,153.67,15.11291555]
[1750115343434,15.11291555,153.71,153.66,15.11291555]
[1750115343631,18.64964886,153.73,153.67,15.11291555]
[1750115343949,15.11291555,153.72,153.67,41.11291555]
[1750115344259,15.11291555,153.71,153.67,26.0]
[1750115344462,15.11291555,153.69,153.67,26.0]
[1750115344831,15.11291555,153.74,153.68,15.11291555]
[1750115345035,15.11291555,153.72,153.67,41.11291555]
[1750115345235,15.11291555,153.73,153.67,26.0]
[1750115345436,15.11291555,153.73,153.69,15.11291555]
[1750115345861,46.89291555,153.75,153.7,21.61909642]
[1750115346372,31.78,153.75,153.7,22.77163304]
[1750115346658,15.11291555,153.74,153.7,22.77163304]
[1750115346847,15.11291555,153.71,153.7,6.50618087]
[1750115347393,15.11291555,153.71,153.67,42.26795675]
[1750115347394,33.76256441,153.71,153.68,6.50702758]
[1750115347673,19.07613357,153.74,153.68,6.50702758]
[1750115347852,15.11291555,153.71,153.67,16.26795675]
[1750115348059,15.11291555,153.7,153.67,16.26795675]
[1750115348276,15.11291555,153.71,153.67,16.26795675]
[1750115348468,19.07613357,153.74,153.67,16.26795675]
[1750115348668,15.11291555,153.71,153.67,16.26795675]
[1750115348872,9.77969375,153.73,153.69,9.77969375]
[1750115349077,9.77969375,153.72,153.67,26.0476505]
[1750115349575,9.77969375,153.73,153.67,16.26795675]
[1750115350051,0.28432314,153.77,153.69,9.77969375]
[1750115350252,4.43309411,153.79,153.73,9.77969375]
[1750115350253,9.77969375,153.78,153.73,9.77969375]
[1750115350472,4.43309411,153.79,153.73,9.77969375]
[1750115350773,4.43309411,153.79,153.72,9.02]
[1750115350774,50.42964886,153.78,153.74,9.77969375]
[1750115351154,18.64964886,153.78,153.74,9.77969375]
[1750115351485,9.77969375,153.76,153.72,9.02]
[1750115351675,9.77969375,153.77,153.72,18.79969375]
[1750115351869,18.64964886,153.78,153.73,6.5049112]
[1750115352062,9.77969375,153.76,153.73,6.5049112]
[1750115352882,15.12915139,153.76,153.73,6.5049112]
[1750115353265,18.933972,153.78,153.72,15.52526081]
[1750115353477,18.64964886,153.75,153.72,15.52526081]
[1750115353657,36.21309411,153.79,153.72,30.6544122]
[1750115353658,15.12915139,153.77,153.72,30.6544122]
[1750115353853,18.64964886,153.76,153.72,30.6544122]
[1750115354554,15.12915139,153.75,153.72,9.02]
[1750115354757,33.77880025,153.73,153.7,6.5061175]
[1750115354965,4.43309411,153.79,153.7,15.5261175]
[1750115355287,50.42964886,153.78,153.7,15.5261175]
[1750115355476,50.42964886,153.78,153.7,30.65526889]
[1750115355676,15.12915139,153.75,153.7,30.65526889]
[1750115355874,15.12915139,153.74,153.7,30.65526889]
[1750115356187,15.12915139,153.75,153.71,15.12915139]
[1750115356386,50.42964886,153.78,153.7,31.79156967]
[1750115356387,18.64964886,153.78,153.72,15.12915139]
[1750115356688,31.76,153.76,153.72,15.12915139]
[1750115356885,15.12915139,153.76,153.72,15.12915139]
[1750115357077,31.76,153.76,153.72,15.12915139]
[1750115357283,46.88915139,153.76,153.72,15.12915139]
[1750115357677,31.76,153.76,153.72,15.12915139]
[1750115357895,46.88915139,153.76,153.71,15.12915139]
[1750115358201,4.43309411,153.79,153.74,6.50448809]
[1750115358400,19.5622455,153.79,153.74,37.89485972]
[1750115358616,51.3222455,153.79,153.74,37.89485972]
[1750115358973,19.5622455,153.79,153.74,37.89485972]
[1750115359274,51.3222455,153.79,153.74,37.89485972]
[1750115359670,19.5622455,153.79,153.74,37.89485972]
[1750115359865,36.19309411,153.79,153.74,37.89485972]
[1750115360072,19.5622455,153.79,153.74,37.89485972]
[1750115360278,51.3222455,153.79,153.74,37.89485972]
[1750115361603,36.19309411,153.79,153.74,16.26122024]
[1750115361783,51.3222455,153.79,153.74,31.39037163]
[1750115362720,15.12915139,153.76,153.73,6.5049112]
[1750115362905,15.12915139,153.75,153.73,6.5049112]
[1750115363221,31.74,153.76,153.73,37.8963406]
[1750115363829,31.74,153.76,153.73,22.76718921]
[1750115364116,31.74,153.76,153.73,37.8963406]
[1750115364506,31.74,153.77,153.74,15.12915139]
[1750115365605,19.5622455,153.79,153.75,6.50406504]
[1750115365801,15.12915139,153.76,153.73,6.5049112]
[1750115366000,15.12915139,153.74,153.73,6.5049112]
[1750115366200,46.86915139,153.74,153.73,6.5049112]
[1750115366802,46.86915139,153.74,153.71,6.50547482]
[1750115367002,19.5622455,153.79,153.73,15.12915139]
[1750115367217,15.12915139,153.78,153.73,15.12915139]
[1750115367418,46.86915139,153.78,153.73,15.12915139]
[1750115368329,31.74,153.78,153.74,6.50448809]
[1750115368524,46.86915139,153.78,153.74,22.76570833]
[1750115369927,31.74,153.78,153.74,22.76570833]
[1750115370329,19.5622455,153.79,153.74,37.89485972]
[1750115370540,4.43309411,153.79,153.75,15.12915139]
[1750115371046,4.43309411,153.79,153.76,15.12915139]
[1750115371340,4.43309411,153.79,153.78,15.12915139]
[1750115371819,4.43309411,153.79,153.77,15.27131296]
[1750115372135,4.43309411,153.79,153.78,6.5027962]
[1750115374117,4.43309411,153.79,153.77,6.50321909]
[1750115374908,4.43309411,153.79,153.77,32.50321909]
[1750115375352,4.43309411,153.79,153.77,42.27259006]
[1750115375554,4.43309411,153.79,153.78,9.76937097]
[1750115376319,4.43309411,153.79,153.78,16.27216717]
[1750115376518,4.43309411,153.79,153.78,6.5027962]
[1750115376718,4.43309411,153.79,153.78,6.64495777]
[1750115376924,4.43309411,153.79,153.78,16.41432874]
[1750115377237,4.43309411,153.79,153.78,6.64495777]
[1750115377446,4.43309411,153.79,153.78,16.41432874]
[1750115378328,4.43309411,153.79,153.78,16.69865188]
[1750115379849,4.43309411,153.79,153.78,35.34830074]
[1750115381641,4.43309411,153.79,153.78,16.69865188]
[1750115382165,2.4583874,153.79,153.78,16.69865188]
[1750115382367,9.76937097,153.9,153.81,26.0]
[1750115382527,50.30964886,153.91,153.86,9.76937097]
[1750115382731,50.30964886,153.91,153.84,26.0]
[1750115383058,9.76937097,153.9,153.85,26.0]
[1750115383255,18.64964886,153.96,153.89,9.76937097]
[1750115383463,13.903141,154.04,153.89,0.14216157]
[1750115383759,13.903141,154.04,153.94,0.42648471]
[1750115384053,13.903141,154.04,153.98,26.0]
[1750115384258,9.76937097,154.02,153.98,26.0]
[1750115384428,13.903141,154.04,153.9,22.74204027]
[1750115384429,9.76937097,153.99,153.9,22.74204027]
[1750115384635,10.0,154.02,153.92,18.933972]
[1750115384859,9.76937097,153.97,153.93,0.14216157]
[1750115385059,9.76937097,153.94,153.9,22.74204027]
[1750115385262,9.76937097,153.94,153.9,6.49772579]
[1750115385263,18.64964886,153.94,153.9,6.49772579]
[1750115385581,9.76937097,153.91,153.88,15.47817129]
[1750115385765,18.64964886,153.94,153.88,8.98]
[1750115385766,9.76937097,153.89,153.88,8.98]
[1750115385954,41.72937097,153.89,153.88,8.98]
[1750115386141,31.96,153.89,153.88,8.98]
[1750115386346,41.72937097,153.89,153.88,15.47857031]
[1750115386546,31.96,153.89,153.88,8.98]
[1750115386766,9.76937097,153.89,153.88,8.98]
[1750115386965,41.86937097,153.89,153.88,8.98]
[1750115387170,60.51901983,153.89,153.88,8.98]
[1750115387849,50.74964886,153.89,153.88,8.98]
[1750115388046,60.51901983,153.89,153.88,8.98]
[1750115388245,18.64964886,153.88,153.83,51.5]
[1750115388449,18.64964886,153.88,153.83,58.00065172]
[1750115388757,9.76937097,153.84,153.83,58.00065172]
[1750115388951,41.88937097,153.84,153.83,58.00065172]
[1750115389145,32.12,153.84,153.81,15.48149889]
[1750115389446,9.76937097,153.82,153.81,15.48149889]
[1750115389648,32.12,153.84,153.81,15.48149889]
[1750115389953,18.64964886,153.83,153.81,8.98]
[1750115390288,9.76937097,153.82,153.81,15.48137535]
[1750115390983,9.76937097,153.82,153.81,8.98]
[1750115391147,28.41901983,153.82,153.81,8.98]
[1750115392093,0.42648471,153.8,153.74,8.98]
[1750115392291,9.76937097,153.75,153.74,8.98]
[1750115392577,41.78937097,153.75,153.74,15.48448809]
[1750115392957,9.76937097,153.75,153.74,15.48448809]
[1750115393193,41.76937097,153.77,153.74,15.48448809]
[1750115393360,9.76937097,153.76,153.74,15.48448809]
[1750115394170,32.0,153.77,153.74,15.48448809]
[1750115394566,9.76937097,153.77,153.74,15.48448809]
[1750115394880,9.76937097,153.76,153.74,15.48448809]
[1750115395086,9.76937097,153.75,153.74,15.48448809]
[1750115395455,9.76937097,153.75,153.74,8.98]
[1750115395651,28.41901983,153.75,153.74,8.98]
[1750115395968,38.26241983,153.75,153.74,8.98]
[1750115397481,38.68890454,153.75,153.74,8.98]
[1750115397667,18.933972,153.74,153.7,6.50615268]
[1750115397996,18.64964886,153.7,153.67,15.48717178]
[1750115398287,31.9,153.69,153.67,15.48717178]
[1750115398498,9.8434,153.75,153.68,35.76937097]
[1750115398681,31.9,153.74,153.71,9.76937097]
[1750115398861,41.66937097,153.74,153.69,32.54248567]
[1750115399060,31.9,153.74,153.69,32.54248567]
[1750115399389,41.66937097,153.74,153.69,32.54248567]
[1750115399587,18.933972,153.78,153.71,9.76937097]
[1750115399794,9.3846,153.8,153.71,9.76937097]
[1750115399993,28.41901983,153.76,153.72,9.76937097]
[1750115400289,28.41901983,153.78,153.72,26.0]
[1750115400590,31.84,153.77,153.73,16.27428217]
[1750115400776,9.76937097,153.78,153.73,22.76718921]
[1750115400964,14.07427456,153.81,153.76,9.76937097]
[1750115400965,11.54887456,153.81,153.76,9.76937097]
[1750115401299,41.58937097,153.82,153.78,9.76937097]
[1750115401874,41.58937097,153.82,153.77,26.0]
[1750115402290,9.76937097,153.81,153.77,26.0]
[1750115402682,31.82,153.82,153.78,6.5027962]
[1750115402683,9.76937097,153.8,153.78,6.5027962]
[1750115402885,31.82,153.82,153.78,6.5027962]
[1750115402886,9.76937097,153.79,153.78,6.5027962]
[1750115403095,9.76937097,153.79,153.76,9.1]
[1750115403397,28.41901983,153.77,153.76,9.1]
[1750115403891,18.64964886,153.77,153.76,9.1]
[1750115404093,28.41901983,153.77,153.76,9.1]
[1750115404474,28.41901983,153.77,153.76,15.60364203]
[1750115405173,9.76937097,153.81,153.76,41.63211809]
[1750115405390,60.17901983,153.8,153.76,41.63211809]
[1750115405591,31.74,153.79,153.76,15.60364203]
[1750115405892,9.3846,153.84,153.76,25.373013]
[1750115406102,28.41901983,153.83,153.76,15.60364203]
[1750115406309,9.76937097,153.79,153.76,31.86274712]
[1750115406487,50.36964886,153.83,153.77,9.76937097]
[1750115406690,9.76937097,153.81,153.78,6.5027962]
[1750115407094,28.41901983,153.79,153.78,6.5027962]
[1750115407290,9.76937097,153.79,153.78,6.5027962]
[1750115407491,41.48937097,153.8,153.78,6.5027962]
[1750115407700,31.72,153.8,153.78,6.5027962]
[1750115408006,41.48937097,153.8,153.78,6.5027962]
[1750115408206,9.76937097,153.79,153.78,6.5027962]
[1750115408814,9.76937097,153.79,153.76,35.1]
[1750115409122,41.48937097,153.8,153.77,6.50321909]
[1750115409304,9.76937097,153.83,153.77,6.50321909]
[1750115409482,9.76937097,153.78,153.77,6.50321909]
[1750115410017,9.76937097,153.79,153.77,6.50321909]
[1750115410215,9.76937097,153.78,153.77,6.50321909]
[1750115410591,60.09901983,153.78,153.75,6.50406504]
[1750115410795,9.76937097,153.77,153.75,6.50406504]
[1750115410999,9.76937097,153.76,153.75,6.50406504]
[1750115411253,9.76937097,153.76,153.74,15.60438308]
[1750115411459,60.09901983,153.75,153.74,15.60438308]
[1750115411750,60.09901983,153.75,153.74,9.1]
[1750115412159,60.09901983,153.75,153.74,15.60448809]
[1750115412328,60.09901983,153.75,153.74,9.1]
[1750115413040,18.64964886,153.74,153.67,25.36809456]
[1750115413342,28.41901983,153.69,153.68,6.50702758]
[1750115413545,18.64964886,153.68,153.67,9.1]
[1750115414359,18.64964886,153.68,153.67,15.60718574]
[1750115414527,27.50554886,153.71,153.67,15.60718574]
[1750115414847,50.32964886,153.7,153.67,15.60718574]
[1750115415220,9.76937097,153.68,153.67,9.1]
[1750115415650,9.76937097,153.68,153.67,15.60745103]
[1750115415945,9.76937097,153.68,153.67,9.1]
[1750115416347,10.05369411,153.68,153.64,6.50867609]
[1750115416559,28.41901983,153.65,153.61,6.50999283]
[1750115416855,31.7,153.64,153.61,6.50999283]
[1750115418255,31.7,153.64,153.6,61.14481227]
[1750115418256,9.76937097,153.62,153.6,15.61032353]
[1750115418557,31.7,153.61,153.6,15.61032353]
[1750115419022,28.55962314,153.68,153.6,15.61032353]
[1750115419023,31.68,153.63,153.6,31.88636519]
[1750115419226,18.64964886,153.63,153.6,15.61032353]
[1750115419425,18.64964886,153.63,153.6,41.61032353]
[1750115419845,9.76937097,153.65,153.6,51.3796945]
[1750115420055,31.7,153.64,153.61,9.76937097]
[1750115420235,31.7,153.63,153.61,9.76937097]
[1750115420550,31.7,153.63,153.62,9.76937097]
[1750115420755,31.7,153.63,153.62,16.27894003]
[1750115421255,31.7,153.63,153.62,6.50956906]
[1750115422831,31.7,153.63,153.6,44.86937097]
[1750115422832,31.7,153.63,153.61,6.50999283]
[1750115423657,31.7,153.63,153.61,16.2793638]
[1750115423859,31.7,153.63,153.61,6.50999283]
[1750115425233,9.76937097,153.62,153.61,6.50999283]
[1750115425536,31.7,153.63,153.61,6.50999283]
[1750115426147,41.46937097,153.63,153.61,6.50999283]
[1750115426429,9.76937097,153.62,153.6,9.1]
[1750115426667,9.76937097,153.61,153.6,9.1]
[1750115427639,18.64964886,153.62,153.6,15.61040084]
[1750115428174,28.41901983,153.62,153.6,15.61040084]
[1750115428540,9.76937097,153.61,153.6,15.61040084]
[1750115428739,26.0,153.59,153.49,11.3797]
[1750115428962,9.76937097,153.54,153.5,6.51465798]
[1750115429141,9.76937097,153.54,153.49,18.86937097]
[1750115429142,40.5853,153.53,153.49,15.61503842]
[1750115429353,9.76937097,153.5,153.49,9.1]
[1750115429674,60.09901983,153.5,153.49,9.1]
[1750115430665,60.09901983,153.5,153.49,15.61508241]
[1750115430963,18.64964886,153.56,153.49,41.67215941]
[1750115431164,41.46937097,153.55,153.51,9.76937097]
[1750115431460,2.2481,153.59,153.52,26.0]
[1750115431662,50.34964886,153.58,153.54,6.51296079]
[1750115431838,60.11901983,153.58,153.54,6.51296079]
[1750115432469,60.11901983,153.58,153.54,22.79536276]
[1750115432834,15.16597586,153.57,153.54,22.79536276]
[1750115433440,65.51562472,153.58,153.54,22.79536276]
[1750115433663,65.51562472,153.58,153.54,16.28240197]
[1750115433890,65.51562472,153.58,153.54,15.16597586]
[1750115433891,50.34964886,153.58,153.54,15.16597586]
[1750115434072,15.16597586,153.57,153.53,6.513385]
[1750115434569,50.34964886,153.58,153.53,6.513385]
[1750115434757,15.16597586,153.55,153.53,6.513385]
[1750115435068,46.86597586,153.55,153.53,6.513385]
[1750115435793,31.7,153.55,153.53,15.16597586]
[1750115435964,15.16597586,153.58,153.53,15.16597586]
[1750115436170,50.34964886,153.57,153.53,15.16597586]
[1750115436778,15.16597586,153.58,153.53,15.16597586]
[1750115437088,31.7,153.57,153.54,21.67893665]
[1750115437762,31.7,153.57,153.54,6.51296079]
[1750115438153,31.7,153.56,153.54,6.51296079]
[1750115439585,31.7,153.56,153.54,21.67893665]
[1750115440469,31.7,153.56,153.54,6.51296079]